lending/lending_fUSD_20260110
["ID","MTS","AMOUNT","RATE_DAILY","PERIOD"]
[401259004,1768079333967,-500.0,0.00019,7]
[401259005,1768079333991,-500.0,0.00019,7]
[401259006,1768079334017,-500.0,0.00019,7]
[401259007,1768079334043,-500.0,0.00019,7]
[401259008,1768079334077,-500.0,0.00019,7]
[401259009,1768079334106,-282.92,0.00019,7]
[401259010,1768079334133,-500.0,0.00019,7]
[401259011,1768079334159,-500.0,0.00019,7]
[401259012,1768079334186,-500.0,0.00019,7]
[401259013,1768079334213,-500.0,0.00019,7]
[401259014,1768079334240,-500.0,0.00019,7]
[401259015,1768079334266,-500.0,0.00019,7]
[401259016,1768079334292,-500.0,0.00019,7]
[401259017,1768079334319,-500.0,0.00019,7]
[401259018,1768079334346,-500.0,0.00019,7]
[401259019,1768079334372,-500.0,0.00019,7]
[401259020,1768079334397,-500.0,0.00019,7]
[401259021,1768079334422,-500.0,0.00019,7]
[401259022,1768079334447,-500.0,0.00019,7]
[401259023,1768079334472,-500.0,0.00019,7]
[401259024,1768079334498,-500.0,0.00019,7]
[401259025,1768079334523,-500.0,0.00019,7]
[401259026,1768079334547,-500.0,0.00019,7]
[401259027,1768079334572,-500.0,0.00019,7]
[401259028,1768079334596,-500.0,0.00019,7]
[401259029,1768079334621,-500.0,0.00019,7]
[401259030,1768079334647,-500.0,0.00019,7]
[401259031,1768079334675,-500.0,0.00019,7]
[401259032,1768079334700,-500.0,0.00019,7]
[401259033,1768079334726,-500.0,0.00019,7]
[401259034,1768079334753,-500.0,0.00019,7]
[401259035,1768079334777,-500.0,0.00019,7]
[401259036,1768079334801,-500.0,0.00019,7]
[401259037,1768079334826,-500.0,0.00019,7]
[401259038,1768079334851,-500.0,0.00019,7]
[401259039,1768079334875,-500.0,0.00019,7]
[401259040,1768079334902,-500.0,0.00019,7]
[401259041,1768079334927,-500.0,0.00019,7]
[401259042,1768079334953,-500.0,0.00019,7]
[401259043,1768079334978,-500.0,0.00019,7]
[401259044,1768079335003,-500.0,0.00019,7]
[401259045,1768079335029,-500.0,0.00019,7]
[401259046,1768079335055,-500.0,0.00019,7]
[401259047,1768079335082,-500.0,0.00019,7]
[401259048,1768079335107,-500.0,0.00019,7]
[401259049,1768079335133,-500.0,0.00019,7]
[401259050,1768079335158,-500.0,0.00019,7]
[401259051,1768079335225,-500.0,0.00019,7]
[401259052,1768079335251,-500.0,0.00019,7]
[401259053,1768079335276,-500.0,0.00019,7]
[401259054,1768079335302,-500.0,0.00019,7]
[401259055,1768079335329,-500.0,0.00019,7]
[401259056,1768079335355,-409.8,0.00019,7]
[401259057,1768079335379,-347.10330993,0.00019,2]
[401259058,1768079335405,-1022.3508676,0.00019,2]
[401259059,1768079335429,-300.0,0.00019,2]
[401259060,1768079335454,-52451.89930928,0.00019,2]
[401259061,1768079335480,-1096.9,0.00019004,2]
[401259062,1768079335505,-162.0,0.0001904,2]
[401259063,1768079335532,-1500.0,0.00019068,2]
[401259064,1768079335558,-1500.0,0.00019068,2]
[401259065,1768079335582,-834.0,0.0001911,2]
[401259066,1768079335607,-681.45106646,0.00019138,2]
[401259067,1768079335631,-151.0,0.00019178,2]
[401259068,1768079335657,-151.0,0.00019178,2]
[401259069,1768079335683,-151.0,0.00019178,2]
[401259070,1768079335707,-151.0,0.00019178,2]
[401259071,1768079335731,-151.0,0.00019178,2]
[401259072,1768079335755,-151.0,0.00019178,2]
[401259073,1768079335779,-151.0,0.00019178,2]
[401259074,1768079335804,-962.483582,0.00019178,2]
[401259075,1768079335828,-962.483582,0.00019178,2]
[401259076,1768079335852,-962.483582,0.00019178,2]
[401259077,1768079335877,-962.483582,0.00019178,2]
[401259078,1768079335903,-834.0,0.0001936,2]
[401259079,1768079335927,-162.0,0.0001936,2]
[401259080,1768079335951,-1034.6,0.00019429,2]
[401259081,1768079335975,-828.69620625,0.000196,2]
[401259082,1768079335999,-508.76106636,0.00019616,2]
[401259083,1768079336023,-2000.0,0.00019616,2]
[401259084,1768079336047,-1000.0,0.00019722,2]
[401259085,1768079336073,-173.89659348,0.00019972,2]
[401259086,1768079336098,-500.0,0.00019972,2]
[401259087,1768079336123,-150.0,0.00019973,2]
[401259088,1768079336148,-300.0,0.00019999,2]
[401259089,1768079336173,-500.0,0.00019999,2]
[401259090,1768079336200,-500.0,0.00019999,2]
[401259091,1768079336227,-500.0,0.00019999,2]
[401259092,1768079336257,-649.01651279,0.00019999,2]
[401259093,1768079336284,-513.4898339,0.00019999,2]
[401259094,1768079336311,-500.0,0.00019999,2]
[401259095,1768079336344,-206.95113566,0.00019999,2]
[401259096,1768079336373,-175.5483752,0.00019999,2]
[401259097,1768079336400,-500.0,0.00019999,2]
[401259098,1768079336427,-349.57850548,0.00019999,2]
[401259099,1768079336454,-258233.44734015,0.0002,2]
[401259100,1768079336478,-162.11881616,0.0002,14]
[401259101,1768079336503,-5003.27512522,0.0002,2]
[401259102,1768079336527,-349.08812093,0.0002,2]
[401259103,1768079336552,-233.465,0.0002,13]
[401259104,1768079336576,-160.46212755,0.0002,2]
[401259105,1768079336601,-666.0,0.0002,2]
[401259106,1768079336625,-312662.57870502,0.0002,4]
[401259107,1768079336655,-16816.54514294,0.0002,4]
[401259108,1768079336681,-3267.10380475,0.0002,7]
[401259109,1768079336708,-587.0,0.0002,5]
[401259110,1768079336733,-2261.40592217,0.0002,2]
[401259111,1768079336760,-500.0,0.0002,2]
[401259112,1768079336787,-4572.92193462,0.0002,3]
[401259113,1768079336813,-2930.2063497,0.0002,7]
[401259114,1768079336838,-527.93296052,0.0002,7]
[401259115,1768079336863,-6992.71,0.0002,2]
[401259116,1768079336888,-500.0,0.0002,20]
[401259117,1768079336912,-531.0,0.0002,5]
[401259118,1768079336936,-399.0,0.0002,2]
[401259119,1768079336961,-1000.0,0.0002,7]
[401259120,1768079336986,-151.0,0.0002,2]
[401259121,1768079337014,-3199.446971,0.0002,2]
[401259122,1768079337038,-223.116641,0.0002,2]
[401259123,1768079337063,-223.116641,0.0002,2]
[401259124,1768079337086,-223.116641,0.0002,2]
[401259125,1768079337109,-223.116641,0.0002,2]
[401259126,1768079337133,-2245.72783907,0.0002,2]
[401259127,1768079337158,-151.0,0.0002,2]
[401259128,1768079337184,-190.20527,0.0002,2]
[401259129,1768079337211,-151.0,0.0002,2]
[401259130,1768079337235,-151.0,0.0002,2]
[401259131,1768079337264,-218.054053,0.0002,2]
[401259132,1768079337288,-150.0,0.0002,2]
[401259133,1768079337311,-150.0,0.0002,2]
[401259134,1768079337339,-195.25730016,0.0002,2]
[401259135,1768079337364,-288.687691,0.0002,2]
[401259136,1768079337391,-288.687691,0.0002,2]
[401259137,1768079337417,-685.053229,0.0002,2]
[401259138,1768079337442,-288.687691,0.0002,2]
[401259139,1768079337468,-685.053229,0.0002,2]
[401259140,1768079337494,-288.687691,0.0002,2]
[401259141,1768079337521,-685.053229,0.0002,2]
[401259142,1768079337547,-685.053229,0.0002,2]
[401259143,1768079337571,-151.0,0.0002,2]
[401259144,1768079337596,-271.474756,0.0002,2]
[401259145,1768079337622,-510.947712,0.0002,2]
[401259146,1768079337773,-510.947712,0.0002,2]
[401259147,1768079337800,-151.0,0.0002,2]
[401259148,1768079337830,-151.0,0.0002,2]
[401259149,1768079337859,-510.947712,0.0002,2]
[401259150,1768079337884,-151.0,0.0002,2]
[401259151,1768079337910,-510.947712,0.0002,2]
[401259152,1768079337937,-151.0,0.0002,2]
[401259153,1768079337962,-150.0,0.0002,20]
[401259154,1768079337987,-1260.05351519,0.0002,2]
[401259155,1768079338309,151.0,0.00018,2]
[401259156,1768079338524,151.0,0.00018,2]
[401259157,1768079338600,151.0,0.00018,2]
[401259158,1768079338666,525.0,0.000196,35]
[401259159,1768079338797,151.0,0.00016231,2]
[401259160,1768079338958,151.0,0.00016276,2]
[401259161,1768079339018,151.0,0.00016276,2]
[401259162,1768079339902,151.0,0.00017591,2]
[401259163,1768079341898,151.0,0.0001741,2]
[401259164,1768079391674,-250.0,0.00015979,2]
[401259165,1768079391713,-250.0,0.00015979,2]
[401259166,1768079391743,-250.0,0.00015979,2]
[401259167,1768079391771,-250.0,0.00015979,2]
[401259168,1768079391798,-250.0,0.00015979,2]
[401259169,1768079391825,-250.0,0.00015979,2]
[401259170,1768079391852,-250.0,0.00015979,2]
[401259171,1768079392228,-250.0,0.00015979,2]
[401259172,1768079392255,-250.0,0.00015979,2]
[401259173,1768079392282,-250.0,0.00015979,2]
[401259174,1768079392310,-250.0,0.00015979,2]
[401259175,1768079392337,-250.0,0.00015979,2]
[401259176,1768079392366,-500.0,0.00016466,2]
[401259177,1768079392396,-296.28439965,0.00016466,2]
[401259178,1768079392429,-500.0,0.00016467,2]
[401259179,1768079392457,-500.0,0.00016467,2]
[401259180,1768079392485,-500.0,0.00016467,2]
[401259181,1768079392512,-500.0,0.00016467,2]
[401259182,1768079392540,-151.0,0.0001701,2]
[401259183,1768079392567,-151.0,0.00017107,2]
[401259184,1768079392594,-151.0,0.00017247,2]
[401259185,1768079392620,-199.19,0.00017247,2]
[401259186,1768079392647,-151.0,0.00017386,2]
[401259187,1768079392678,-151.0,0.0001741,2]
[401259188,1768079392706,-158.68188667,0.00017453,2]
[401259189,1768079392734,-500.0,0.00017818,2]
[401259190,1768079392762,-500.0,0.00017973,2]
[401259191,1768079392789,-380.05360747,0.00017973,2]
[401259192,1768079392815,-500.0,0.00017973,2]
[401259193,1768079392844,-500.0,0.00017973,2]
[401259194,1768079392871,-500.0,0.00017973,2]
[401259195,1768079392897,-500.0,0.00017998,2]
[401259196,1768079392927,-500.0,0.00017999,2]
[401259197,1768079392953,-409.51044567,0.00017999,2]
[401259198,1768079392980,-200.0,0.00018,2]
[401259199,1768079393006,-331.028766,0.00018,2]
[401259200,1768079393036,-331.028766,0.00018,2]
[401259201,1768079393065,-331.028766,0.00018,2]
[401259202,1768079393093,-331.028766,0.00018,2]
[401259203,1768079393122,-1000.0,0.00018521,2]
[401259204,1768079393153,-1500.0,0.00019068,2]
[401259205,1768079393182,-250.0,0.00019151,2]
[401259206,1768079393210,-414.34810312,0.000196,2]
[401259207,1768079393240,-2000.0,0.00019616,2]
[401259208,1768079393268,-200.0,0.0002,2]
[401259209,1768079393298,-934.95383,0.0002,2]
[401259210,1768079427065,-500.0,0.00015173,2]
[401259211,1768079427093,-321.61952287,0.00015173,2]
[401259212,1768079427121,-500.0,0.00015173,2]
[401259213,1768079427149,-500.0,0.00015173,2]
[401259214,1768079427177,-500.0,0.00015173,2]
[401259215,1768079427205,-1000.0,0.00015721,2]
[401259216,1768079427234,-976.3156368,0.00015721,2]
[401259217,1768079427262,-1000.0,0.00015721,2]
[401259218,1768079427294,-487.99755872,0.00015721,2]
[401259219,1768079427327,-994214.06728161,0.00015889,2]
[401259220,1768079431479,-532.82685681,0.00015889,2]
[401259221,1768079431491,-5253.10586158,0.00015889,2]
[401259222,1768079431502,-173.89659348,0.00016168,2]
[401259223,1768079431511,-1500.0,0.00016268,2]
[401259224,1768079431521,-1500.0,0.00016268,2]
[401259225,1768079431531,-500.0,0.00016466,2]
[401259226,1768079431540,-296.28439965,0.00016466,2]
[401259227,1768079431550,-500.0,0.00016466,2]
[401259228,1768079431561,-500.0,0.00016466,2]
[401259229,1768079431570,-500.0,0.00016466,2]
[401259230,1768079431592,-500.0,0.00016466,2]
[401259231,1768079431603,-500.0,0.00016466,2]
[401259232,1768079431613,-583.27979842,0.00016466,2]
[401259233,1768079431623,-500.0,0.00016467,2]
[401259234,1768079431633,-575.35243908,0.00016467,2]
[401259235,1768079431643,-2000.0,0.00016816,2]
[401259236,1768079431654,-2000.0,0.00016816,2]
[401259237,1768079431664,-151.0,0.00017328,2]
[401259238,1768079431675,-232.11931395,0.00017364,2]
[401259295,1768079432014,-267.88068605,0.00017364,2]
[401259298,1768079432024,-500.0,0.00017364,2]
[401259300,1768079432035,-158.68188667,0.00017453,2]
[401259302,1768079432044,-151.0,0.0001749,2]
[401259304,1768079432053,-500.0,0.00017973,2]
[401259306,1768079432063,-171.83605725,0.00017973,2]
[401259308,1768079432072,-500.0,0.00017973,2]
[401259311,1768079432082,-500.0,0.00017973,2]
[401259313,1768079432091,-500.0,0.00017973,2]
[401259315,1768079432101,-500.0,0.00017973,2]
[401259317,1768079432110,-500.0,0.00017973,2]
[401259319,1768079432120,-376.39096293,0.00017973,2]
[401259326,1768079432171,-123.60903707,0.00017973,2]
[401259328,1768079432180,-183.2165965,0.00017973,2]
[401259330,1768079432190,-500.0,0.00017973,2]
[401259332,1768079432204,-632.76984978,0.00017973,2]
[401259334,1768079432213,-500.0,0.00017973,2]
[401259336,1768079432223,-500.0,0.00017973,2]
[401259338,1768079432232,-1088.55028832,0.00017977,2]
[401259341,1768079432245,-1348.44971168,0.00017977,2]
[401259342,1768079432255,-1351.55028832,0.00017977,2]
[401259345,1768079432274,-2238.41975202,0.00017977,2]
[401259348,1768079432285,-1230.02995966,0.00017977,2]
[401259350,1768079432294,-580.06004034,0.00018521,2]
[401259352,1768079432306,-560.10492559,0.00018521,2]
[401259354,1768079432315,-1000.0,0.00018521,2]
[401259356,1768079432325,-1371.79169594,0.00019068,2]
[401259358,1768079432335,-207.17405156,0.000196,2]
[401259360,1768079432344,-200.0,0.0002,2]
[401259362,1768079432353,-1200.0,0.00020009,2]
[401259364,1768079432362,-8720.0,0.0002001,2]
[401259366,1768079432372,-300.0,0.00020028,2]
[401259368,1768079432381,-1937.75831623,0.00020164,2]
[401259370,1768079432392,-400.0,0.0002017,2]
[401259371,1768079432404,-404.41420558,0.0002017,2]
[401259373,1768079432413,-934.95384,0.000202,2]
[401259375,1768079432422,-200.0,0.000202,2]
[401259377,1768079432433,-525.0,0.0002021,35]
[401259379,1768079432442,-181.49618347,0.00020329,2]
[401259381,1768079432451,-282.49085831,0.00020361,2]
[401259384,1768079432464,-817.50914169,0.00020361,2]
[401259386,1768079432474,-150.0,0.00020362,2]
[401259388,1768079432484,-150.0,0.00020362,2]
[401259390,1768079432493,-150.0,0.00020362,2]
[401259392,1768079432504,-150.0,0.00020362,2]
[401259394,1768079432513,-150.0,0.00020362,2]
[401259396,1768079432523,-150.0,0.00020362,2]
[401259398,1768079432532,-150.0,0.00020362,2]
[401259400,1768079432542,-1330.0,0.00020362,2]
[401259402,1768079432552,-1405.0,0.00020362,2]
[401259404,1768079432561,-2914.97098269,0.00020362,2]
[401259406,1768079432576,-553.02901731,0.00020362,2]
[401259408,1768079432586,-934.95384,0.000204,2]
[401259410,1768079432595,-200.0,0.00020402,2]
[401259413,1768079432605,-3476.11360537,0.00020435,2]
[401259415,1768079432616,-345.51780687,0.00020435,2]
[401259417,1768079432628,-2535.48197541,0.00020435,2]
[401259431,1768079436501,1197.0,0.000196,35]
[401259432,1768079437589,-500.0,0.00016466,2]
[401259433,1768079437599,-2202.99998823,0.00017977,2]
[401259434,1768079437631,-539.93551002,0.00017977,2]
[401259435,1768079437679,-3811.06450175,0.00017977,2]
[401259436,1768079437689,-21489.22538235,0.00020435,2]
[401259437,1768079437702,-60651.79035722,0.00020435,2]
[401259438,1768079437738,-1797.35282308,0.00020435,2]
[401259439,1768079437749,-327.59762959,0.00020435,2]
[401259440,1768079437760,-4724.96721322,0.00020435,2]
[401259441,1768079437831,-131.7999999,0.00020435,2]
[401259629,1768079439713,-31026.49979994,0.00020435,2]
[401259641,1768079439823,-627.842184,0.00020435,2]
[401259643,1768079439834,-107698.18273535,0.00020435,2]
[401259645,1768079439843,-223.116641,0.00020435,2]
[401259647,1768079439852,-223.116641,0.00020435,2]
[401259649,1768079439861,-223.116641,0.00020435,2]
[401259651,1768079439871,-223.116641,0.00020435,2]
[401259653,1768079439880,-151.0,0.00020435,2]
[401259655,1768079439889,-151.0,0.00020435,2]
[401259657,1768079439899,-151.0,0.00020435,2]
[401259659,1768079439907,-151.0,0.00020435,2]
[401259661,1768079439917,-151.0,0.00020435,2]
[401259663,1768079439926,-151.0,0.00020435,2]
[401259665,1768079439935,-194.645138,0.00020435,2]
[401259667,1768079439944,-962.483582,0.00020435,2]
[401259669,1768079439953,-962.483582,0.00020435,2]
[401259671,1768079439962,-962.483582,0.00020435,2]
[401259673,1768079439971,-962.483582,0.00020435,2]
[401259675,1768079439980,-98155.390634,0.00020444,2]
[401259677,1768079439989,-59633.80039,0.00020444,2]
[401259679,1768079439998,-1266.0,0.00020476,2]
[401259681,1768079440008,-505.0,0.00020476,2]
[401259682,1768079440017,-914.0,0.00020476,2]
[401259684,1768079440026,-1201.0,0.00020476,2]
[401259686,1768079440036,-250.0,0.00020521,2]
[401259688,1768079440045,-353.94920012,0.00020547,2]
[401259690,1768079440054,-21491.49,0.00020548,2]
[401259692,1768079440064,-192.76,0.00020548,2]
[401259694,1768079440073,-934.95384,0.000206,2]
[401259696,1768079440083,-200.0,0.00020606,2]
[401259698,1768079440093,-177.9,0.00020667,2]
[401259700,1768079440102,-22619.02724572,0.000207,2]
[401259702,1768079440111,-934.95384,0.000208,2]
[401259705,1768079440121,-200.0,0.00020812,2]
[401259707,1768079440130,-525.0,0.0002082,35]
[401259710,1768079440139,-2437.0,0.00020977,2]
[401259713,1768079440149,-4820.0,0.00020977,2]
[401259717,1768079440158,-6554.0,0.00020977,2]
[401259720,1768079440166,-500.0,0.0002098,3]
[401259723,1768079440175,-1005.17487026,0.00021,2]
[401259725,1768079440185,-217.38819141,0.00021,7]
[401259727,1768079440194,-500.59,0.00021,3]
[401259729,1768079440203,-20000.0,0.00021,2]
[401259730,1768079440213,-1191.67222157,0.00021,2]
[401259731,1768079440222,-196.69540862,0.00021,2]
[401259732,1768079440231,-7000.0,0.00021,2]
[401259733,1768079440240,-350.0,0.00021,2]
[401259734,1768079440250,-934.95384,0.00021,2]
[401259735,1768079440260,-12498.53,0.00021068,2]
[401259736,1768079440269,-350.0,0.00021068,2]
[401259737,1768079440279,-250.0,0.00021114,2]
[401259738,1768079440289,-1096.9,0.00021116,2]
[401259739,1768079440298,-3582.66745032,0.0002112,2]
[401259740,1768079440308,-290.33169083,0.00021167,2]
[401259741,1768079440317,-2000.0,0.000212,2]
[401259742,1768079440327,-1000.0,0.000212,2]
[401259743,1768079440336,-934.95384,0.000212,2]
[401259744,1768079440345,-279.0,0.00021339,2]
[401259746,1768079440355,-6369.1,0.0002137,2]
[401259747,1768079440364,-934.95384,0.000214,2]
[401259749,1768079440374,-525.0,0.0002143,35]
[401259751,1768079440384,-151.0,0.000215,2]
[401259753,1768079440397,-57463.84588619,0.000215,2]
[401259755,1768079440406,-221.8636772,0.000215,2]
[401259757,1768079440416,-249.384576,0.000215,2]
[401259759,1768079440425,-151.0,0.000215,2]
[401259761,1768079440435,-162.349803,0.000215,2]
[401259764,1768079440445,-151.0,0.000215,2]
[401259765,1768079440455,-212.723732,0.000215,2]
[401259767,1768079440464,-151.0,0.000215,2]
[401259769,1768079440475,-151.0,0.000215,2]
[401259771,1768079440485,-163.187771,0.000215,2]
[401259773,1768079440494,-331.028766,0.000215,2]
[401259775,1768079440503,-331.028766,0.000215,2]
[401259777,1768079440512,-331.028766,0.000215,2]
[401259779,1768079440521,-331.028766,0.000215,2]
[401259781,1768079440530,-934.95384,0.000216,2]
[401259783,1768079440540,-450.0,0.00021616,2]
[401259785,1768079440549,-1000.0,0.00021694,2]
[401259787,1768079440558,-934.95384,0.000218,2]
[401259789,1768079440567,-420.0,0.00021808,2]
[401259791,1768079440576,-1830.8014693,0.00021858,2]
[401259793,1768079440585,-681.45106646,0.00021891,2]
[401259795,1768079440595,-1680.0,0.00021892,2]
[401259797,1768079440603,-5000.0,0.00021918,2]
[401259799,1768079440612,-151.0,0.00021918,2]
[401259801,1768079440622,-151.0,0.00021918,2]
[401259803,1768079440631,-151.0,0.00021918,2]
[401259805,1768079440641,-270.057793,0.00021918,2]
[401259807,1768079440651,-258.357273,0.00021918,2]
[401259809,1768079440659,-258.357273,0.00021918,2]
[401259811,1768079440668,-258.357273,0.00021918,2]
[401259813,1768079440677,-258.357273,0.00021918,2]
[401259815,1768079440687,-258.357273,0.00021918,2]
[401259817,1768079440696,-258.357273,0.00021918,2]
[401259819,1768079440705,-258.357273,0.00021918,2]
[401259821,1768079440715,-258.357273,0.00021918,2]
[401259823,1768079440724,-800.0,0.00021918,2]
[401259825,1768079440734,-800.0,0.00021918,2]
[401259827,1768079440743,-800.0,0.00021918,2]
[401259829,1768079440752,-800.0,0.00021918,2]
[401259831,1768079440762,-800.0,0.00021918,2]
[401259833,1768079440770,-800.0,0.00021918,2]
[401259835,1768079440779,-800.0,0.00021918,2]
[401259837,1768079440788,-800.0,0.00021918,2]
[401259839,1768079440798,-1000.0,0.00021918,2]
[401259841,1768079440807,-800.0,0.00021918,2]
[401259843,1768079440818,-800.0,0.00021918,2]
[401259845,1768079440827,-800.0,0.00021918,2]
[401259847,1768079440837,-800.0,0.00021918,2]
[401259849,1768079440846,-800.0,0.00021918,2]
[401259851,1768079440856,-800.0,0.00021918,2]
[401259853,1768079440865,-800.0,0.00021918,2]
[401259855,1768079440874,-800.0,0.00021918,2]
[401259857,1768079440883,-150.0,0.00021918,2]
[401259859,1768079440893,-500.0,0.00021918,2]
[401259861,1768079440902,-500.0,0.00021918,2]
[401259863,1768079440911,-500.0,0.00021918,2]
[401259865,1768079440920,-500.0,0.00021918,2]
[401259867,1768079440930,-500.0,0.00021918,2]
[401259869,1768079440939,-500.0,0.00021918,2]
[401259871,1768079440948,-500.0,0.00021918,2]
[401259873,1768079440958,-500.0,0.00021918,2]
[401259875,1768079440967,-500.0,0.00021918,2]
[401259877,1768079440976,-500.0,0.00021918,2]
[401259879,1768079440985,-500.0,0.00021918,2]
[401259880,1768079440995,-500.0,0.00021918,2]
[401259882,1768079441006,-500.0,0.00021918,2]
[401259884,1768079441015,-500.0,0.00021918,2]
[401259886,1768079441025,-500.0,0.00021918,2]
[401259888,1768079441034,-500.0,0.00021918,2]
[401259890,1768079441044,-500.0,0.00021918,2]
[401259893,1768079441054,-500.0,0.00021918,2]
[401259894,1768079441063,-500.0,0.00021918,2]
[401259896,1768079441073,-500.0,0.00021918,2]
[401259899,1768079441083,-500.0,0.00021918,2]
[401259900,1768079441093,-500.0,0.00021918,2]
[401259902,1768079441102,-500.0,0.00021918,2]
[401259904,1768079441112,-500.0,0.00021918,2]
[401259906,1768079441121,-500.0,0.00021918,2]
[401259909,1768079441131,-500.0,0.00021918,2]
[401259910,1768079441141,-500.0,0.00021918,2]
[401259912,1768079441150,-500.0,0.00021918,2]
[401259915,1768079441161,-600.0,0.00021918,2]
[401259917,1768079441170,-500.0,0.00021918,2]
[401259919,1768079441179,-500.0,0.00021918,2]
[401259920,1768079441189,-500.0,0.00021918,2]
[401259922,1768079441198,-500.0,0.00021918,2]
[401259924,1768079441208,-500.0,0.00021918,2]
[401259927,1768079441217,-500.0,0.00021918,2]
[401259928,1768079441227,-500.0,0.00021918,2]
[401259931,1768079441237,-500.0,0.00021918,2]
[401259932,1768079441246,-500.0,0.00021918,2]
[401259934,1768079441256,-500.0,0.00021918,2]
[401259936,1768079441265,-500.0,0.00021918,2]
[401259938,1768079441275,-500.0,0.00021918,2]
[401259940,1768079441284,-500.0,0.00021918,2]
[401259942,1768079441295,-500.0,0.00021918,2]
[401259944,1768079441304,-500.0,0.00021918,2]
[401259946,1768079441313,-500.0,0.00021918,2]
[401259948,1768079441323,-500.0,0.00021918,2]
[401259951,1768079441332,-500.0,0.00021918,2]
[401259953,1768079441342,-500.0,0.00021918,2]
[401259955,1768079441351,-500.0,0.00021918,2]
[401259957,1768079441361,-500.0,0.00021918,2]
[401259959,1768079441370,-500.0,0.00021918,2]
[401259960,1768079441379,-500.0,0.00021918,2]
[401259963,1768079441388,-500.0,0.00021918,2]
[401259964,1768079441401,-500.0,0.00021918,2]
[401259967,1768079441411,-519.05909661,0.00021918,2]
[401259968,1768079441421,-500.0,0.00021918,2]
[401259970,1768079441430,-203.0,0.00022,15]
[401259972,1768079441440,-163.43,0.00022,2]
[401259974,1768079441450,-269748.48393022,0.00022,4]
[401259976,1768079441460,-796.53198586,0.00022,7]
[401259978,1768079441469,-163.53,0.00022,2]
[401259981,1768079441479,-535.0,0.00022,2]
[401259982,1768079441489,-160.0,0.00022,2]
[401259985,1768079441498,-151.0,0.00022,5]
[401259987,1768079441508,-181975.22,0.00022,2]
[401259989,1768079441517,-7693.05,0.00022,7]
[401259991,1768079441527,-223.116641,0.00022,2]
[401259992,1768079441536,-223.116641,0.00022,2]
[401259994,1768079441546,-223.116641,0.00022,2]
[401259997,1768079441555,-223.116641,0.00022,2]
[401259998,1768079441564,-150.0,0.00022,2]
[401260001,1768079441574,-525.0,0.0002204,36]
[401260003,1768079441583,-493.79896333,0.000221,2]
[401260005,1768079441592,-239.94007879,0.0002211,2]
[401260006,1768079441602,-550.0,0.00022164,2]
[401260009,1768079441612,-1000.0,0.00022192,2]
[401260010,1768079441621,-160.0,0.00022192,2]
[401260012,1768079441630,-1000.0,0.00022466,2]
[401260014,1768079441639,-208.55924398,0.00022466,2]
[401260016,1768079441649,-35446.20229481,0.000225,2]
[401260018,1768079441658,-151.0,0.000225,2]
[401260020,1768079441667,-491.5,0.00022502,10]